bitfinex/quotes_BTCUSD_20220307
["timestamp","ask_amount","ask_price","bid_price","bid_amount"]
[1646657340323,0.41724964,38608.0,38606.0,0.3356]
[1646657340524,0.41724964,38607.0,38606.0,0.3356]
[1646657340722,0.1,38607.0,38606.0,0.3356]
[1646657341122,0.41724964,38607.0,38606.0,0.3356]
[1646657341526,0.5517,38607.0,38606.0,0.3356]
[1646657341726,0.72184192,38607.0,38606.0,0.3356]
[1646657341923,0.4580336,38607.0,38606.0,0.3356]
[1646657342124,0.5228576,38607.0,38606.0,0.20063558]
[1646657342628,0.5332386,38607.0,38606.0,0.20063558]
[1646657342824,0.3684146,38607.0,38606.0,0.20063558]
[1646657343028,0.31725699,38607.0,38606.0,0.20063558]
[1646657343224,0.1,38608.0,38606.0,0.20063558]
[1646657343469,0.31725699,38611.0,38606.0,0.20063558]
[1646657343668,0.1,38611.0,38609.0,0.17609853]
[1646657344067,0.31725699,38613.0,38609.0,0.17609853]
[1646657344665,0.31725699,38613.0,38612.0,0.14703774]
[1646657344866,0.31725699,38613.0,38609.0,0.24088253]
[1646657345272,0.31752554,38614.0,38611.0,0.1999]
[1646657345570,0.31725699,38613.0,38611.0,0.129565]
[1646657345868,0.31725699,38613.0,38611.0,0.31322913]
[1646657346067,0.31725699,38613.0,38611.0,0.51302913]
[1646657346471,0.00026856,38614.0,38611.0,0.51302913]
[1646657346669,0.00026856,38614.0,38611.0,0.31322913]
[1646657346869,0.31725699,38615.0,38611.0,0.31322913]
[1646657346870,0.31725699,38615.0,38611.0,0.129565]
[1646657347069,0.31725699,38615.0,38613.0,0.1998]
[1646657347319,0.00026856,38614.0,38613.0,0.1998]
[1646657347825,0.31752555,38614.0,38613.0,0.1998]
[1646657348221,0.31725699,38614.0,38613.0,0.1998]
[1646657348420,0.31725699,38614.0,38612.0,0.5]
[1646657348421,0.1,38614.0,38612.0,0.5]
[1646657348621,0.31718798,38613.0,38612.0,0.5]
[1646657348820,0.1,38613.0,38612.0,0.5]
[1646657349826,0.1,38613.0,38611.0,0.1998]
[1646657350224,0.1,38612.0,38611.0,0.1998]
[1646657353383,0.41718798,38612.0,38611.0,0.1998]
[1646657353773,0.1,38612.0,38611.0,0.1998]
[1646657355831,0.1,38612.0,38611.0,0.4598]
[1646657358968,0.09930998,38612.0,38611.0,0.4598]
[1646657359366,0.064793,38613.0,38611.0,0.4598]
[1646657359567,0.09990998,38612.0,38611.0,0.4598]
[1646657362422,0.09990998,38612.0,38611.0,0.5098]
[1646657364820,0.09990998,38612.0,38611.0,0.37882001]
[1646657365222,0.09990998,38615.0,38611.0,0.37882001]
[1646657365422,0.00022035,38614.0,38611.0,0.31]
[1646657365723,0.00022035,38614.0,38613.0,0.5]
[1646657365974,0.41709796,38615.0,38613.0,0.71728552]
[1646657365975,0.41702186,38615.0,38613.0,0.71728552]
[1646657366177,0.41702186,38615.0,38613.0,0.76728552]
[1646657366178,0.09983388,38615.0,38613.0,0.76728552]
[1646657366371,0.09983388,38615.0,38613.0,0.55]
[1646657366573,0.00022027,38615.0,38613.0,0.55]
[1646657366771,0.10015415,38615.0,38613.0,0.6187]
[1646657367372,0.09993388,38615.0,38613.0,0.6187]
[1646657367773,0.41712186,38615.0,38613.0,0.6187]
[1646657368372,0.33712186,38615.0,38613.0,0.6187]
[1646657368675,0.38198506,38615.0,38613.0,0.6187]
[1646657368873,0.31718798,38614.0,38613.0,0.6187]
[1646657369720,0.481919,38615.0,38613.0,0.6187]
[1646657370027,0.09993388,38614.0,38613.0,0.6187]
[1646657370322,0.06479714,38615.0,38614.0,0.51276612]
[1646657370323,0.4349303,38615.0,38614.0,0.51276612]
[1646657370719,0.5349303,38615.0,38614.0,0.51276612]
[1646657371323,0.16479714,38615.0,38614.0,0.51276612]
[1646657371522,0.25987922,38615.0,38614.0,0.51276612]
[1646657371923,0.47012206,38615.0,38614.0,0.51276612]
[1646657372122,0.41722866,38615.0,38614.0,0.51276612]
[1646657372921,0.41722866,38615.0,38614.0,1.01276612]
[1646657373779,0.42760666,38615.0,38614.0,1.01276612]
[1646657374179,0.41722866,38615.0,38614.0,1.01276612]
[1646657374382,0.1,38615.0,38614.0,1.01276612]
[1646657377624,0.47012206,38615.0,38614.0,1.01276612]
[1646657378021,0.1,38615.0,38614.0,1.01276612]
[1646657378223,0.47012206,38615.0,38614.0,1.01276612]
[1646657378625,0.20917693,38615.0,38614.0,1.01276612]
[1646657379127,0.25917693,38615.0,38614.0,1.01276612]
[1646657380732,0.25917693,38615.0,38614.0,0.51276612]
[1646657380980,0.35907693,38615.0,38614.0,0.51276612]
[1646657381576,0.36945593,38615.0,38614.0,0.51276612]
[1646657381778,0.26955593,38615.0,38614.0,0.51276612]
[1646657381975,0.25917693,38615.0,38614.0,0.51276612]
[1646657384829,0.25917693,38615.0,38614.0,0.40130257]
[1646657386627,0.81993628,38615.0,38614.0,0.40130257]
[1646657386834,0.77983628,38615.0,38614.0,0.40130257]
[1646657387032,0.8951614,38615.0,38614.0,0.01239457]
[1646657387226,0.99516066,38615.0,38614.0,0.01239457]
[1646657387429,0.93805855,38615.0,38614.0,0.01239457]
[1646657387628,1.18459766,38615.0,38613.0,0.0687]
[1646657387827,0.7327146,38614.0,38613.0,0.0687]
[1646657388026,1.04263687,38614.0,38613.0,0.0687]
[1646657388226,1.45233835,38614.0,38613.0,0.0687]
[1646657388471,1.19695609,38614.0,38613.0,0.0687]
[1646657390076,1.46478168,38614.0,38613.0,0.0687]
[1646657390275,1.46478168,38614.0,38613.0,0.02764997]
[1646657390672,0.24914919,38612.0,38611.0,0.1822661]
[1646657390874,0.38863593,38612.0,38611.0,0.1822661]
[1646657391072,0.43863593,38612.0,38611.0,0.1822661]
[1646657391273,1.06999718,38612.0,38611.0,0.1822661]
[1646657391478,0.6468582,38612.0,38611.0,0.1822661]
[1646657391677,0.79361968,38612.0,38611.0,0.1822661]
[1646657391880,0.6339182,38612.0,38611.0,0.1822661]
[1646657392075,0.6339182,38612.0,38611.0,0.2322661]
[1646657392720,0.7338182,38612.0,38611.0,0.2322661]
[1646657393320,1.05374954,38612.0,38611.0,0.2322661]
[1646657393520,0.90374954,38612.0,38611.0,0.2322661]
[1646657393719,0.67559593,38612.0,38611.0,0.2322661]
[1646657393920,0.98514766,38612.0,38611.0,0.2322661]
[1646657394122,0.82559593,38612.0,38611.0,0.2322661]
[1646657394322,0.8838182,38612.0,38611.0,0.2322661]
[1646657394528,1.31224023,38612.0,38611.0,0.1822661]
[1646657394723,1.73537921,38612.0,38611.0,0.1822661]
[1646657395132,1.73537921,38612.0,38596.0,0.5]
[1646657395133,1.25,38611.0,38596.0,0.5]
[1646657395326,0.26445865,38597.0,38596.0,0.5]
[1646657395625,0.1017,38597.0,38596.0,0.5]
[1646657395824,0.2017,38597.0,38596.0,0.5]
[1646657396075,0.25905038,38598.0,38596.0,0.5]
[1646657396270,0.25905038,38598.0,38597.0,0.05]
[1646657396469,0.11653181,38598.0,38597.0,0.05]
[1646657396869,0.28136381,38598.0,38597.0,0.05]
[1646657397073,0.29174581,38598.0,38597.0,0.05]
[1646657397270,0.34174581,38598.0,38596.0,0.314728]
[1646657397473,0.59576851,38598.0,38596.0,0.314728]
[1646657397672,0.1,38597.0,38596.0,0.3150071]
[1646657397871,0.1517,38597.0,38596.0,0.3150071]
[1646657398273,0.4161047,38597.0,38596.0,0.2650071]
[1646657398776,0.1517,38597.0,38596.0,0.264728]
[1646657399170,0.41609644,38597.0,38596.0,0.264728]
[1646657399375,0.1517,38597.0,38596.0,0.314728]
[1646657400522,0.11735919,38597.0,38596.0,0.314728]
[1646657400927,0.0517,38597.0,38596.0,0.314728]
[1646657401124,0.062082,38597.0,38596.0,0.314728]
[1646657401325,0.15165919,38597.0,38596.0,0.314728]
[1646657401724,0.25155919,38597.0,38596.0,0.314728]
[1646657402926,0.15165919,38597.0,38596.0,0.314728]
[1646657403127,0.1017,38597.0,38596.0,0.314728]
[1646657403328,0.15165919,38597.0,38596.0,0.314728]
[1646657403772,0.05,38597.0,38596.0,0.314728]
[1646657403971,0.14995919,38597.0,38596.0,0.314728]
[1646657404174,0.09995919,38597.0,38596.0,0.314728]
[1646657404373,0.14995919,38597.0,38596.0,0.314728]
[1646657404970,0.16034119,38597.0,38596.0,0.21141386]
[1646657405172,0.14995919,38597.0,38596.0,0.21141386]
[1646657405372,0.14995919,38597.0,38596.0,0.27624186]
[1646657405772,0.05,38597.0,38596.0,0.27624186]
[1646657406172,0.21477819,38599.0,38596.0,0.53624186]
[1646657406370,0.14995919,38599.0,38597.0,0.05]
[1646657406776,0.09995919,38599.0,38597.0,0.2114]
[1646657406973,0.26439644,38601.0,38597.0,0.2114]
[1646657406974,0.09995919,38601.0,38597.0,0.2114]
[1646657407226,0.05,38601.0,38600.0,0.20094635]
[1646657407429,0.36435563,38603.0,38600.0,0.20094635]
[1646657407430,0.09995919,38603.0,38600.0,0.26575135]
[1646657407623,0.09995919,38603.0,38601.0,0.16683471]
[1646657408023,0.09995919,38604.0,38601.0,0.16683471]
[1646657408422,0.26439644,38606.0,38601.0,0.16683471]
[1646657408423,0.36435563,38606.0,38601.0,0.16683471]
[1646657408624,0.36435563,38606.0,38602.0,0.1612]
[1646657408822,0.26439644,38606.0,38604.0,0.064805]
[1646657409024,0.32920244,38606.0,38604.0,0.064805]
[1646657409625,0.26439644,38605.0,38604.0,0.225905]
[1646657409824,0.26439644,38605.0,38604.0,0.1611]
[1646657410628,0.32920244,38606.0,38604.0,0.1611]
[1646657411274,0.26439644,38605.0,38604.0,0.1611]
[1646657412975,0.27477544,38605.0,38604.0,0.1611]
[1646657413376,0.09995919,38605.0,38604.0,0.1611]
[1646657413575,0.36423624,38605.0,38604.0,0.1611]
[1646657413775,0.09995919,38605.0,38604.0,0.1611]
[1646657413976,0.36423682,38605.0,38604.0,0.1611]
[1646657414180,0.09995919,38605.0,38604.0,0.1611]
[1646657414379,2.50361498,38605.0,38604.0,0.1611]
[1646657414833,2.82080685,38605.0,38604.0,0.1611]
[1646657415036,2.92080685,38605.0,38604.0,0.1611]
[1646657415236,2.65531498,38605.0,38604.0,0.1611]
[1646657415632,3.1384971,38605.0,38604.0,0.1611]
[1646657415831,3.2383971,38605.0,38604.0,0.1611]
[1646657416033,3.2383971,38605.0,38604.0,0.07488631]
[1646657416232,3.2487781,38605.0,38604.0,0.07488631]
[1646657416632,3.2383971,38605.0,38604.0,0.12488631]
[1646657416833,0.194436,38608.0,38605.0,1.25]
[1646657416834,0.07527073,38608.0,38605.0,1.25]
[1646657417035,0.05822227,38612.0,38606.0,1.55]
[1646657417036,0.31714173,38607.0,38606.0,1.55]
[1646657417233,0.42340179,38616.0,38608.0,1.644896]
[1646657417234,0.00026794,38616.0,38608.0,1.644896]
[1646657417440,0.00026794,38616.0,38614.0,0.02596]
[1646657417634,0.00026794,38616.0,38615.0,0.02596]
[1646657417835,0.05822227,38619.0,38615.0,0.21714731]
[1646657418032,0.05822227,38619.0,38616.0,0.54125109]
[1646657418236,0.00026801,38617.0,38616.0,0.54125109]
[1646657418478,0.00026801,38617.0,38615.0,0.24118731]
[1646657418883,0.00026801,38617.0,38615.0,0.31588731]
[1646657419079,0.05822227,38621.0,38615.0,0.31588731]
[1646657419280,0.00026801,38618.0,38616.0,0.194323]
[1646657419980,0.00026801,38618.0,38616.0,0.494323]
[1646657420178,0.02917737,38623.0,38616.0,0.569023]
[1646657420384,0.110374,38624.0,38616.0,0.569023]
[1646657420579,0.00026801,38619.0,38616.0,0.569023]
[1646657420981,0.00026801,38619.0,38616.0,1.069023]
[1646657421482,0.1,38624.0,38616.0,0.994323]
[1646657421678,0.00026801,38619.0,38617.0,0.22072026]
[1646657421882,0.00026801,38619.0,38617.0,0.0697]
[1646657422080,0.00026801,38619.0,38617.0,0.1197]
[1646657422532,0.1,38624.0,38617.0,0.1197]
[1646657422732,0.1,38624.0,38618.0,0.064777]
[1646657422938,0.14026801,38620.0,38618.0,0.064777]
[1646657423134,0.14,38619.0,38618.0,0.064777]
[1646657424536,0.14,38619.0,38618.0,0.364777]
[1646657424937,0.1108217,38619.0,38618.0,0.364777]
[1646657425340,0.00026801,38620.0,38618.0,0.364777]
[1646657425544,0.00026801,38620.0,38619.0,0.32596]
[1646657426180,0.1,38628.0,38621.0,0.129528]
[1646657426382,0.1,38628.0,38624.0,0.4791703]
[1646657426586,0.1,38632.0,38627.0,0.12436374]
[1646657426785,0.1,38632.0,38628.0,0.3]
[1646657426984,0.3499999,38635.0,38628.0,0.32596]
[1646657427184,0.1,38635.0,38628.0,0.3]
[1646657427381,0.1,38638.0,38630.0,0.19188059]
[1646657427584,0.00026801,38633.0,38632.0,0.064754]
[1646657428185,0.00026801,38633.0,38630.0,0.1196]
[1646657428583,0.1,38637.0,38630.0,0.1196]
[1646657428788,0.2125,38640.0,38630.0,0.184353]
[1646657428789,0.00026801,38633.0,38630.0,0.184353]
[1646657428987,0.00026801,38633.0,38632.0,0.21865763]
[1646657429387,0.00026801,38633.0,38630.0,0.184353]
[1646657429585,0.00026801,38633.0,38630.0,0.1196]
[1646657429832,0.3124,38640.0,38630.0,0.1196]
[1646657429833,0.1,38637.0,38630.0,0.1196]
[1646657430032,0.00026801,38633.0,38631.0,0.3]
[1646657430232,0.1,38639.0,38630.0,0.05]
[1646657430435,0.1,38639.0,38631.0,0.3]
[1646657430737,0.19526801,38639.0,38632.0,0.05]
[1646657430934,0.1,38639.0,38632.0,0.114751]
[1646657431131,0.19996801,38639.0,38637.0,0.0696]
[1646657431337,0.21033901,38639.0,38637.0,0.0696]
[1646657431734,0.09996801,38639.0,38637.0,0.0696]
[1646657431934,0.3124,38640.0,38637.0,0.0696]
[1646657432333,0.3124,38640.0,38636.0,0.05]
[1646657432532,0.3124,38640.0,38638.0,0.0696]
[1646657432533,0.21276734,38640.0,38638.0,0.0696]
[1646657433339,0.2125,38640.0,38638.0,0.134348]
[1646657433790,0.2125,38640.0,38639.0,0.05]
[1646657435291,0.222872,38640.0,38639.0,0.05]
[1646657436691,0.2125,38640.0,38639.0,0.05]
[1646657437232,0.4525,38640.0,38639.0,0.26]
[1646657437436,1.25,38639.0,38638.0,0.04360001]
[1646657437631,1.31464,38639.0,38638.0,0.04360001]
[1646657437832,1.51460801,38639.0,38638.0,0.04360001]
[1646657438033,1.61460801,38639.0,38638.0,0.04360001]
[1646657438436,1.81283028,38639.0,38638.0,0.04360001]
[1646657438834,1.91273028,38639.0,38638.0,0.04360001]
[1646657439035,0.56283028,38639.0,38638.0,0.04360001]
[1646657439234,0.42283028,38639.0,38638.0,0.04360001]
[1646657439438,0.36460801,38639.0,38638.0,0.04360001]
[1646657439835,0.26460801,38639.0,38638.0,0.04360001]
[1646657440235,0.35166801,38639.0,38638.0,0.04360001]
[1646657440435,0.45156801,38639.0,38638.0,0.04360001]
[1646657440836,0.35156801,38639.0,38638.0,0.04360001]
[1646657441086,0.45156801,38639.0,38638.0,0.04360001]
[1646657443085,0.46194101,38639.0,38638.0,0.04360001]
[1646657443686,0.45278171,38639.0,38638.0,0.04360001]
[1646657444831,0.25288171,38639.0,38638.0,0.04360001]
[1646657445431,0.25288171,38639.0,38638.0,0.04324562]
[1646657446236,0.35278171,38639.0,38638.0,0.04324562]
[1646657446832,0.46315471,38639.0,38638.0,0.03892106]
[1646657447231,0.45278171,38639.0,38638.0,0.03892106]
[1646657447432,0.51100398,38639.0,38638.0,0.29892106]
[1646657447832,0.51100398,38639.0,38638.0,0.34892106]
[1646657449281,0.50979028,38639.0,38638.0,0.34892106]
[1646657450882,0.42026428,38639.0,38638.0,0.34892106]
[1646657451085,0.40989028,38639.0,38638.0,0.34892106]
[1646657453633,0.70989028,38639.0,38638.0,0.34892106]
[1646657454834,0.72026428,38639.0,38638.0,0.31029845]
[1646657455033,0.70989028,38639.0,38638.0,0.31029845]
[1646657455633,0.70946028,38639.0,38638.0,0.31029845]
[1646657456083,0.70946028,38639.0,38628.0,0.5]
[1646657456084,1.50176028,38639.0,38628.0,0.5]
[1646657456287,0.129557,38635.0,38628.0,0.5]
[1646657456485,0.09996801,38629.0,38628.0,0.5]
[1646657456688,0.15166801,38629.0,38628.0,0.5]
[1646657457589,0.15166801,38629.0,38628.0,0.55]
[1646657457788,0.15166801,38629.0,38628.0,0.81]
[1646657457987,0.09996801,38629.0,38628.0,0.81]
[1646657458588,0.11034201,38629.0,38628.0,0.81]
[1646657459388,0.09996801,38629.0,38628.0,0.81]
[1646657460430,0.09996801,38629.0,38628.0,1.0121955]
[1646657460633,0.09996801,38633.0,38628.0,1.0121788]
[1646657460835,0.00026731,38635.0,38629.0,0.05]
[1646657461035,0.09996801,38637.0,38630.0,0.1998]
[1646657461234,0.00026732,38635.0,38632.0,0.5]
[1646657461433,0.10023533,38635.0,38633.0,0.18320219]
[1646657461633,0.10023533,38635.0,38633.0,0.05]
[1646657461838,0.16499633,38635.0,38633.0,0.05]
[1646657462035,0.16499633,38635.0,38633.0,0.2498]
[1646657462234,0.0999,38634.0,38633.0,0.2498]
[1646657466381,0.110273,38634.0,38633.0,0.2498]
[1646657466680,0.0999,38634.0,38633.0,0.2498]
[1646657467082,0.16472901,38635.0,38633.0,0.2498]
[1646657467332,0.16499635,38635.0,38633.0,0.2498]
[1646657468326,0.16472901,38635.0,38633.0,0.2498]
[1646657468527,0.16472901,38635.0,38633.0,0.5098]
[1646657468928,0.10016734,38636.0,38633.0,0.5098]
[1646657469327,0.10016734,38636.0,38633.0,0.31]
[1646657469527,0.0999,38636.0,38634.0,0.1998]
[1646657469734,0.10016734,38636.0,38634.0,0.6998]
[1646657469928,0.00026734,38636.0,38635.0,0.41306148]
[1646657470129,0.00026734,38636.0,38635.0,0.46306148]
[1646657470328,0.00026734,38636.0,38635.0,0.76306148]
[1646657470529,0.00026734,38636.0,38635.0,0.46306148]
[1646657470734,0.0999,38640.0,38635.0,0.76306148]
[1646657470977,0.0999,38640.0,38635.0,1.26306148]
[1646657471178,0.00026734,38637.0,38635.0,1.32780948]
[1646657471380,0.00026734,38637.0,38635.0,1.52760948]
[1646657471578,0.00026734,38637.0,38635.0,1.55356948]
[1646657471779,0.00026734,38637.0,38635.0,1.16286148]
[1646657471979,0.064754,38638.0,38635.0,1.16286148]
[1646657472179,0.06502134,38638.0,38635.0,0.95486706]
[1646657472382,0.06433182,38638.0,38635.0,0.95486706]
[1646657472780,0.00026734,38638.0,38635.0,0.75506706]
[1646657472980,0.42313385,38642.0,38635.0,0.75506706]
[1646657473179,0.164654,38638.0,38636.0,0.1998]
[1646657473380,0.16492134,38638.0,38636.0,0.1998]
[1646657473579,0.06502134,38638.0,38636.0,0.1998]
[1646657473782,0.0999,38637.0,38636.0,0.1998]
[1646657474178,0.0999,38637.0,38636.0,0.48829414]
[1646657474581,0.00026734,38638.0,38636.0,0.78829414]
[1646657474831,0.00026734,38638.0,38636.0,0.4998]
[1646657475433,0.064755,38638.0,38636.0,0.1998]
[1646657476634,0.10016734,38639.0,38636.0,0.1998]
[1646657476635,0.0999,38639.0,38636.0,0.1998]
[1646657476933,0.10016734,38639.0,38635.0,0.85948136]
[1646657477134,0.10016734,38639.0,38638.0,0.5]
[1646657477643,0.10016734,38639.0,38638.0,0.55]
[1646657477834,0.0999,38639.0,38638.0,0.55]
[1646657478233,0.110271,38639.0,38638.0,0.55]
[1646657478477,0.0999,38639.0,38638.0,0.55]
[1646657481580,0.0999,38639.0,38638.0,0.05]
[1646657481979,0.0999,38639.0,38637.0,0.2498]
[1646657482228,0.11027,38639.0,38637.0,0.2498]
[1646657482429,0.0999,38639.0,38637.0,0.2498]
[1646657482630,0.0999,38639.0,38637.0,0.7498]
[1646657483532,0.164653,38639.0,38637.0,0.7498]
[1646657484531,0.0999,38639.0,38637.0,0.7498]
[1646657484932,0.0999,38638.0,38637.0,0.879299]
[1646657485135,0.0999,38638.0,38637.0,0.679499]
[1646657485534,0.0499,38638.0,38637.0,0.679499]
[1646657485735,0.0499,38638.0,38637.0,0.55]
[1646657486179,0.1016,38638.0,38637.0,0.55]
[1646657486379,0.1016,38638.0,38637.0,0.85]
[1646657486582,0.1016,38638.0,38637.0,0.55]
[1646657486583,0.0517,38638.0,38637.0,0.55]
[1646657486983,0.0517,38638.0,38637.0,0.05]
[1646657487182,0.0517,38638.0,38636.0,0.2498]
[1646657487382,0.0517,38638.0,38636.0,0.44442952]
[1646657487987,0.00026734,38639.0,38636.0,0.44442952]
[1646657488384,0.00026734,38639.0,38636.0,0.24462952]
[1646657488585,0.00026734,38639.0,38637.0,0.1998]
[1646657488784,0.06475,38641.0,38637.0,0.26455]
[1646657488986,0.00026734,38639.0,38637.0,0.06475]
[1646657489283,0.00026734,38639.0,38637.0,0.76455]
[1646657489934,0.06475,38641.0,38637.0,0.76455]
[1646657490133,0.00026734,38640.0,38637.0,0.56475]
[1646657490333,0.00026734,38640.0,38639.0,0.2498]
[1646657491135,0.06475,38641.0,38639.0,0.2498]
[1646657491334,0.09996801,38640.0,38639.0,0.2498]
[1646657491734,0.12666801,38640.0,38639.0,0.2498]
[1646657492135,0.1917,38640.0,38639.0,0.2498]
[1646657492336,0.29166801,38640.0,38639.0,0.2498]
[1646657492541,0.39166801,38640.0,38639.0,0.2498]
[1646657492736,0.50204001,38640.0,38639.0,0.2498]
[1646657493139,0.40181432,38640.0,38639.0,0.2498]
[1646657493779,0.50181432,38640.0,38639.0,0.2498]
[1646657494181,0.40181432,38640.0,38639.0,0.2498]
[1646657494579,0.39144232,38640.0,38639.0,0.2498]
[1646657496179,0.29144232,38640.0,38639.0,0.2498]
[1646657496779,0.30181332,38640.0,38639.0,0.2498]
[1646657496979,0.29144232,38640.0,38639.0,0.2498]
[1646657497239,0.39134232,38640.0,38639.0,0.2498]
[1646657497639,0.49134232,38640.0,38639.0,0.2498]
[1646657500640,0.45023901,38640.0,38639.0,0.2498]
[1646657500844,0.43986801,38640.0,38639.0,0.2498]
[1646657501277,0.14,38640.0,38639.0,0.379313]
[1646657501483,0.11908741,38640.0,38639.0,0.379313]
[1646657501678,0.26898587,38640.0,38639.0,0.2498]
[1646657501879,0.21898433,38640.0,38639.0,0.2498]
[1646657502079,0.0999,38640.0,38639.0,0.43567525]
[1646657502283,0.31895348,38640.0,38639.0,0.43567525]
[1646657502481,0.31895348,38640.0,38639.0,0.2498]
[1646657504581,0.32932448,38640.0,38639.0,0.2498]
[1646657505034,0.31895348,38640.0,38639.0,0.2498]
[1646657509085,0.06475,38641.0,38639.0,0.314556]
[1646657509285,0.06501734,38641.0,38639.0,0.314556]
[1646657509484,0.1,38640.0,38639.0,0.2498]
[1646657509686,0.1999,38640.0,38639.0,0.2498]
[1646657510289,0.3516,38640.0,38639.0,0.05]
[1646657510488,0.77473385,38640.0,38639.0,0.05]
[1646657510686,1.17460155,38640.0,38638.0,0.6510425]
[1646657510889,0.21810836,38639.0,38638.0,0.6510425]
[1646657511100,0.52803063,38639.0,38638.0,0.6510425]
[1646657511391,0.62803063,38639.0,38638.0,0.6510425]
[1646657511589,0.66970836,38639.0,38638.0,0.6510425]
[1646657512239,0.66970836,38639.0,38638.0,0.7010425]
[1646657512240,0.68007936,38639.0,38638.0,0.7010425]
[1646657512641,0.66970836,38639.0,38638.0,0.7010425]
[1646657513442,0.81960836,38639.0,38638.0,0.7010425]
[1646657514244,0.3516,38639.0,38638.0,0.7010425]
[1646657514445,0.77456787,38639.0,38638.0,0.7010425]
[1646657514843,0.3516,38639.0,38638.0,0.7010425]
[1646657515843,0.27803456,38639.0,38638.0,0.62425256]
[1646657516087,0.28840556,38639.0,38638.0,0.62425256]
[1646657516287,0.27803456,38639.0,38638.0,0.62425256]
[1646657517084,0.27803456,38639.0,38638.0,0.67425256]
[1646657518287,0.28303456,38639.0,38638.0,0.67425256]
[1646657519488,0.02643456,38639.0,38638.0,0.97425256]
[1646657519731,0.02643456,38639.0,38638.0,0.67425256]
[1646657520732,0.02643456,38639.0,38638.0,1.17425256]
[1646657520933,0.02665623,38640.0,38638.0,1.17425256]
[1646657521132,0.02643456,38640.0,38638.0,1.17425256]
[1646657521535,0.02665623,38640.0,38638.0,1.17635256]
[1646657521733,0.02665623,38640.0,38639.0,0.3]
[1646657522038,0.1,38646.0,38639.0,0.35]
[1646657522039,0.1,38645.0,38639.0,0.35]
[1646657522239,0.37402559,38640.0,38639.0,0.35]
[1646657522435,0.1,38645.0,38639.0,0.35]
[1646657522436,0.1,38645.0,38639.0,0.37589164]
[1646657522633,0.1,38645.0,38644.0,0.16553568]
[1646657523034,0.1,38645.0,38644.0,0.21553568]
[1646657523491,0.1999,38645.0,38644.0,0.05]
[1646657523693,0.21027,38645.0,38642.0,0.0021]
[1646657523888,0.21027,38645.0,38644.0,0.5]
[1646657523889,0.63323787,38645.0,38644.0,0.5]
[1646657524088,0.63323787,38645.0,38644.0,0.55]
[1646657524089,0.53323787,38645.0,38644.0,0.55]
[1646657524492,0.73323787,38645.0,38644.0,0.55]
[1646657524892,0.87221848,38645.0,38644.0,0.05]
[1646657525092,0.72286787,38645.0,38642.0,0.0021]
[1646657525299,0.0999,38643.0,38642.0,0.0021]
[1646657525493,0.1999,38643.0,38642.0,0.0021]
[1646657528034,0.1,38643.0,38642.0,0.0021]
[1646657528236,0.00021939,38644.0,38642.0,0.0021]
[1646657528436,0.82660148,38645.0,38642.0,0.0021]
[1646657528437,0.40363361,38645.0,38642.0,0.0021]
[1646657528739,0.00021939,38644.0,38642.0,0.0021]
[1646657529235,0.10011939,38644.0,38643.0,0.18226514]
[1646657529637,0.0999,38644.0,38643.0,0.18226514]
[1646657535434,0.110268,38644.0,38643.0,0.18226514]
[1646657535637,0.0999,38644.0,38643.0,0.17726514]
[1646657537036,0.12631597,38644.0,38643.0,0.17726514]
[1646657537436,0.12561069,38644.0,38643.0,0.17726514]
[1646657538682,0.09919472,38644.0,38643.0,0.17726514]
[1646657538887,0.46900496,38644.0,38643.0,0.17726514]
[1646657539182,0.47937296,38644.0,38643.0,0.17726514]
[1646657539384,0.10956272,38644.0,38643.0,0.17726514]
[1646657539582,0.46900496,38644.0,38643.0,0.17726514]
[1646657539783,0.09919472,38644.0,38642.0,0.94158]
[1646657539982,0.46900496,38644.0,38642.0,0.94158]
[1646657540183,0.46900496,38644.0,38642.0,0.876843]
[1646657540785,0.09919472,38644.0,38642.0,0.876843]
[1646657543141,0.09919472,38644.0,38642.0,0.826843]
[1646657543142,0.10956272,38644.0,38642.0,0.826843]
[1646657543339,0.1,38643.0,38642.0,0.7621]
[1646657543537,0.2,38643.0,38642.0,0.7621]
[1646657544038,0.2517,38643.0,38642.0,0.7621]
[1646657544438,0.44716356,38643.0,38642.0,0.7621]
[1646657544640,0.44716356,38643.0,38642.0,0.8121]
[1646657546308,0.2517,38643.0,38642.0,0.8121]
[1646657547111,0.26207,38643.0,38642.0,0.8121]
[1646657547414,0.2517,38643.0,38642.0,0.8121]
[1646657548712,0.1517,38643.0,38642.0,0.8121]
[1646657548913,0.1517,38643.0,38642.0,0.81]
[1646657549511,0.2508,38643.0,38642.0,0.81]
[1646657550839,0.2772148,38643.0,38642.0,0.71605131]
[1646657551041,0.26117,38643.0,38642.0,0.71605131]
[1646657551442,0.2508,38643.0,38642.0,0.71605131]
[1646657554188,0.2508,38643.0,38642.0,0.92553291]
[1646657554592,0.06474,38646.0,38643.0,0.064751]
[1646657554789,0.16474,38646.0,38644.0,0.06475]
[1646657555190,0.16474,38646.0,38644.0,0.26465]
[1646657555191,0.1999,38645.0,38644.0,0.26465]
[1646657555590,0.16474,38646.0,38644.0,0.45179266]
[1646657555792,0.0931,38645.0,38644.0,0.26465]
[1646657555991,0.193,38645.0,38644.0,0.26465]
[1646657556191,0.0999,38645.0,38644.0,0.26465]
[1646657556391,0.1999,38645.0,38644.0,0.26465]
[1646657556891,0.1999,38645.0,38644.0,0.43861475]
[1646657557345,0.1999,38645.0,38644.0,0.26465]
[1646657558243,0.1649588,38646.0,38644.0,0.26465]
[1646657558448,0.010369,38645.0,38644.0,0.26465]
[1646657558644,0.162069,38645.0,38644.0,0.26465]
[1646657558843,0.1999,38645.0,38644.0,0.26465]
[1646657559249,0.2516,38645.0,38644.0,0.26465]
[1646657560346,0.2516,38645.0,38644.0,0.76465]
[1646657560745,0.1517,38645.0,38644.0,0.76465]
[1646657560995,0.2516,38645.0,38644.0,0.76465]
[1646657562296,0.261969,38645.0,38644.0,0.76465]
[1646657562597,0.2516,38645.0,38644.0,0.76465]
[1646657566045,0.26197,38645.0,38644.0,0.68818501]
[1646657566444,0.2516,38645.0,38644.0,0.75293501]
[1646657566646,0.1517,38645.0,38644.0,0.75293501]
[1646657568691,0.2516,38645.0,38644.0,0.75293501]